fUST/lending_fUST_20250906
["ID","MTS","AMOUNT","RATE_DAILY","PERIOD"]
[383853324,1757143845153,-480.0,0.00014246,2]
[383853325,1757143845163,-1762.73,0.00014246,2]
[383853326,1757143845172,-561.98,0.00014246,2]
[383853327,1757143845182,-480.0,0.00014246,2]
[383853328,1757143845191,-948.89,0.00014246,2]
[383853329,1757143845200,-480.0,0.00014246,2]
[383853330,1757143845210,-737.59,0.00014246,2]
[383853331,1757143845219,-545.38,0.00014246,2]
[383853332,1757143845229,-151.0,0.00014246,2]
[383853333,1757143845238,-480.0,0.00014246,2]
[383853334,1757143845247,-9434.71,0.00014246,2]
[383853335,1757143845257,-480.0,0.00014246,2]
[383853336,1757143845268,-528.10910465,0.00014246,2]
[383853337,1757143845277,-480.0,0.00014246,2]
[383853338,1757143845286,-480.0,0.00014246,2]
[383853339,1757143845296,-480.0,0.00014246,2]
[383853340,1757143845305,-480.0,0.00014246,2]
[383853341,1757143845314,-739.0,0.00014246,2]
[383853342,1757143845324,-579.38,0.00014246,2]
[383853343,1757143845333,-480.0,0.00014246,2]
[383853344,1757143845343,-480.0,0.00014246,2]
[383853345,1757143845352,-783.14,0.00014246,2]
[383853346,1757143845362,-734.75,0.00014246,2]
[383853347,1757143845372,-1751.42,0.00014246,2]
[383853348,1757143845382,-1666.63,0.00014246,2]
[383853349,1757143845391,-480.0,0.00014246,2]
[383853350,1757143845400,-640.45,0.00014246,2]
[383853351,1757143845410,-1159.53,0.00014246,2]
[383853352,1757143845419,-2279.84,0.00014246,2]
[383853353,1757143845429,-480.0,0.00014246,2]
[383853354,1757143845439,-644.23,0.00014246,2]
[383853355,1757143845450,-480.0,0.00014246,2]
[383853356,1757143845459,-480.0,0.00014246,2]
[383853357,1757143845469,-512.5,0.00014246,2]
[383853358,1757143845478,-480.0,0.00014246,2]
[383853359,1757143845487,-1508.72,0.00014246,2]
[383853360,1757143845497,-959.07,0.00014246,2]
[383853361,1757143845507,-480.0,0.00014246,2]
[383853362,1757143845516,-480.0,0.00014246,2]
[383853363,1757143845526,-480.0,0.00014246,2]
[383853364,1757143845535,-480.0,0.00014246,2]
[383853365,1757143845545,-623.24,0.00014246,2]
[383853366,1757143845554,-618.68,0.00014246,2]
[383853367,1757143845563,-152.100789,0.00014246,2]
[383853368,1757143845572,-6469.27,0.00014246,2]
[383853369,1757143845582,-151.0,0.00014246,2]
[383853370,1757143845591,-151.0,0.00014246,2]
[383853371,1757143845600,-480.0,0.00014246,2]
[383853372,1757143845610,-151.0,0.00014246,2]
[383853373,1757143845620,-151.0,0.00014246,2]
[383853374,1757143845629,-480.0,0.00014246,2]
[383853375,1757143845639,-151.0,0.00014246,2]
[383853376,1757143845649,-151.0,0.00014246,2]
[383853377,1757143845658,-480.0,0.00014246,2]
[383853378,1757143845668,-480.0,0.00014246,2]
[383853379,1757143845678,-319.62515827,0.00014246,2]
[383853380,1757143845687,-308.86308494,0.000144,2]
[383853381,1757143845698,-151.0,0.000144,2]
[383853382,1757143845708,-420.0,0.00014461,2]
[383853383,1757143845718,-500.0,0.00014473,2]
[383853384,1757143845728,-500.0,0.00014473,2]
[383853385,1757143845738,-500.0,0.00014473,2]
[383853386,1757143845747,-500.0,0.00014473,2]
[383853387,1757143845756,-500.0,0.00014473,2]
[383853388,1757143845766,-500.0,0.00014473,2]
[383853389,1757143845775,-500.0,0.00014473,2]
[383853390,1757143845785,-504.26350277,0.00014473,2]
[383853391,1757143845795,-500.0,0.00014473,2]
[383853392,1757143845804,-500.0,0.00014473,2]
[383853393,1757143845813,-500.0,0.00014473,2]
[383853394,1757143845823,-500.48255043,0.00014473,2]
[383853395,1757143845833,-198556.75,0.000145,2]
[383853397,1757143845842,-151.0,0.000145,2]
[383853398,1757143845852,-151.0,0.000145,2]
[383853399,1757143845862,-151.0,0.000145,2]
[383853400,1757143845871,-151.0,0.000145,2]
[383853401,1757143845881,-151.0,0.000145,2]
[383853402,1757143845892,-151.0,0.000145,2]
[383853403,1757143845902,-151.0,0.000145,2]
[383853404,1757143845912,-159.032414,0.000145,2]
[383853406,1757143845921,-151.0,0.000145,2]
[383853407,1757143845931,-151.0,0.000145,2]
[383853409,1757143845940,-151.0,0.000145,2]
[383853410,1757143845950,-151.0,0.000145,2]
[383853411,1757143845959,-151.0,0.000145,2]
[383853412,1757143845969,-151.0,0.000145,2]
[383853413,1757143845978,-151.0,0.000145,2]
[383853414,1757143845987,-151.0,0.000145,2]
[383853415,1757143845997,-151.0,0.000145,2]
[383853416,1757143846007,-151.0,0.000145,2]
[383853417,1757143846017,-151.0,0.000145,2]
[383853418,1757143846026,-151.0,0.000145,2]
[383853419,1757143846038,-151.0,0.000145,2]
[383853420,1757143846049,-151.0,0.000145,2]
[383853421,1757143846059,-151.0,0.000145,2]
[383853422,1757143846070,-151.0,0.000145,2]
[383853423,1757143846080,-151.0,0.000145,2]
[383853425,1757143846089,-151.0,0.000145,2]
[383853426,1757143846100,-151.0,0.000145,2]
[383853428,1757143846109,-151.0,0.000145,2]
[383853429,1757143846119,-583.497092,0.000145,2]
[383853430,1757143846130,-583.497092,0.000145,2]
[383853432,1757143846140,-151.0,0.000145,2]
[383853433,1757143846150,-583.497092,0.000145,2]
[383853434,1757143846160,-151.0,0.000145,2]
[383853435,1757143846169,-583.497092,0.000145,2]
[383853436,1757143846179,-151.0,0.000145,2]
[383853437,1757143846189,-480.0,0.0001452,2]
[383853438,1757143846199,-603.85,0.0001452,2]
[383853439,1757143846208,-1062.88,0.0001452,2]
[383853440,1757143846219,-213.40978934,0.0001452,2]
[383853441,1757143846230,-576.65342841,0.0001452,2]
[383853442,1757143846239,-338.3524891,0.0001452,2]
[383853443,1757143846249,-583.84620475,0.0001452,2]
[383853444,1757143846259,-505.29,0.0001452,2]
[383853445,1757143846268,-368.78947191,0.0001452,2]
[383853447,1757143846278,-627.28,0.0001452,2]
[383853448,1757143846288,-480.0,0.0001452,2]
[383853449,1757143846297,-559.37,0.0001452,2]
[383853450,1757143846307,-818.83,0.0001452,2]
[383853451,1757143846317,-498.54,0.0001452,2]
[383853452,1757143846326,-480.0,0.0001452,2]
[383853453,1757143846336,-480.0,0.0001452,2]
[383853454,1757143846345,-480.0,0.0001452,2]
[383853455,1757143846354,-480.0,0.0001452,2]
[383853456,1757143846364,-654.51,0.0001452,2]
[383853457,1757143846374,-480.0,0.0001452,2]
[383853458,1757143846383,-480.0,0.0001452,2]
[383853459,1757143846392,-492.44,0.0001452,2]
[383853460,1757143846402,-480.0,0.0001452,2]
[383853461,1757143846413,-480.0,0.0001452,2]
[383853462,1757143846424,-493.08521497,0.0001452,2]
[383853463,1757143846434,-625.64,0.0001452,2]
[383853464,1757143846443,-480.0,0.0001452,2]
[383853465,1757143846454,-480.0,0.0001452,2]
[383853466,1757143846463,-798.58,0.0001452,2]
[383853467,1757143846473,-488.04,0.0001452,2]
[383853468,1757143846483,-480.0,0.0001452,2]
[383853469,1757143846492,-480.0,0.0001452,2]
[383853470,1757143846502,-480.0,0.0001452,2]
[383853471,1757143846511,-851.74,0.0001452,2]
[383853472,1757143846521,-480.0,0.0001452,2]
[383853473,1757143846531,-822.2,0.0001452,2]
[383853474,1757143846540,-480.0,0.0001452,2]
[383853475,1757143846550,-861.15,0.0001452,2]
[383853476,1757143846559,-551.94,0.0001452,2]
[383853477,1757143846569,-510.6,0.0001452,2]
[383853478,1757143846578,-600.26962971,0.0001452,2]
[383853479,1757143846589,-657.02,0.0001452,2]
[383853480,1757143846598,-480.0,0.0001452,2]
[383853481,1757143846608,-4337.94,0.0001452,2]
[383853482,1757143846619,-480.0,0.0001452,2]
[383853483,1757143846629,-480.0,0.0001452,2]
[383853484,1757143846641,-2274.53,0.0001452,2]
[383853485,1757143846651,-480.0,0.0001452,2]
[383853486,1757143846660,-480.0,0.0001452,2]
[383853487,1757143846669,-480.0,0.0001452,2]
[383853488,1757143846678,-818.65,0.0001452,2]
[383853489,1757143846688,-480.0,0.0001452,2]
[383853490,1757143846697,-597.51149267,0.0001452,2]
[383853491,1757143846707,-1885.52,0.0001452,2]
[383853492,1757143846717,-480.0,0.0001452,2]
[383853493,1757143846726,-480.0,0.0001452,2]
[383853494,1757143846736,-17109.5,0.0001452,2]
[383853495,1757143846746,-480.0,0.0001452,2]
[383853496,1757143846756,-480.0,0.0001452,2]
[383853497,1757143846766,-480.0,0.0001452,2]
[383853498,1757143846775,-1910.22,0.0001452,2]
[383853499,1757143846785,-705.8,0.0001452,2]
[383853500,1757143846794,-480.0,0.0001452,2]
[383853501,1757143846804,-536.62,0.0001452,2]
[383853502,1757143846813,-1940.78,0.0001452,2]
[383853503,1757143846822,-480.0,0.0001452,2]
[383853504,1757143846832,-480.0,0.0001452,2]
[383853505,1757143846842,-2433.6,0.0001452,2]
[383853506,1757143846851,-480.0,0.0001452,2]
[383853507,1757143846861,-500.0,0.0001452,2]
[383853508,1757143846871,-480.0,0.0001452,2]
[383853509,1757143846880,-1174.74,0.0001452,2]
[383853510,1757143846889,-1394.88,0.0001452,2]
[383853511,1757143846899,-593.33,0.0001452,2]
[383853513,1757143846909,-480.0,0.0001452,2]
[383853514,1757143846918,-2120.67,0.0001452,2]
[383853515,1757143846928,-480.0,0.0001452,2]
[383853516,1757143846937,-480.0,0.0001452,2]
[383853517,1757143846947,-1762.73,0.0001452,2]
[383853518,1757143846957,-561.98,0.0001452,2]
[383853519,1757143846967,-480.0,0.0001452,2]
[383853520,1757143846976,-948.89,0.0001452,2]
[383853521,1757143846986,-480.0,0.0001452,2]
[383853522,1757143846995,-737.59,0.0001452,2]
[383853523,1757143847005,-545.38,0.0001452,2]
[383853524,1757143847014,-480.0,0.0001452,2]
[383853525,1757143847024,-9434.71,0.0001452,2]
[383853526,1757143847033,-480.0,0.0001452,2]
[383853527,1757143847043,-480.0,0.0001452,2]
[383853528,1757143847053,-480.0,0.0001452,2]
[383853529,1757143847063,-480.0,0.0001452,2]
[383853530,1757143847072,-480.0,0.0001452,2]
[383853531,1757143847082,-739.0,0.0001452,2]
[383853532,1757143847091,-579.38,0.0001452,2]
[383853533,1757143847100,-480.0,0.0001452,2]
[383853534,1757143847110,-480.0,0.0001452,2]
[383853535,1757143847119,-783.14,0.0001452,2]
[383853536,1757143847129,-1751.42,0.0001452,2]
[383853537,1757143847138,-734.75,0.0001452,2]
[383853538,1757143847148,-1666.63,0.0001452,2]
[383853540,1757143847158,-625.04523384,0.0001452,2]
[383853541,1757143847167,-640.45,0.0001452,2]
[383853542,1757143847177,-1159.53,0.0001452,2]
[383853543,1757143847187,-2279.84,0.0001452,2]
[383853544,1757143847196,-480.0,0.0001452,2]
[383853545,1757143847206,-644.23,0.0001452,2]
[383853546,1757143847215,-480.0,0.0001452,2]
[383853547,1757143847224,-377.94526038,0.0001452,2]
[383853548,1757143847234,-480.0,0.0001452,2]
[383853549,1757143847346,-1508.72,0.0001452,2]
[383853550,1757143847355,-959.07,0.0001452,2]
[383853551,1757143847366,-480.0,0.0001452,2]
[383853552,1757143847375,-480.0,0.0001452,2]
[383853553,1757143847385,-337.99864246,0.0001452,2]
[383853554,1757143847394,-480.0,0.0001452,2]
[383853555,1757143847403,-618.68,0.0001452,2]
[383853556,1757143847416,-6469.27,0.0001452,2]
[383853557,1757143847426,-480.0,0.0001452,2]
[383853558,1757143847436,-480.0,0.0001452,2]
[383853559,1757143847446,-480.0,0.0001452,2]
[383853560,1757143847456,-480.0,0.0001452,2]
[383853562,1757143847466,-1000.0,0.00014521,2]
[383853563,1757143847475,-1000.0,0.00014521,2]
[383853564,1757143847486,-260.85676101,0.00014557,2]
[383853565,1757143847495,-151.0,0.000146,2]
[383853566,1757143847506,-151.0,0.000147,2]
[383853567,1757143847515,-432.0,0.000147,2]
[383853568,1757143847526,-160.0,0.00014766,2]
[383853569,1757143847535,-1000.0,0.00014768,2]
[383853570,1757143847545,-1500.0,0.00014768,2]
[383853571,1757143847555,-242.15397016,0.00014778,2]
[383853572,1757143847565,-432.0,0.00014783,2]
[383853573,1757143847575,-480.0,0.00014794,2]
[383853574,1757143847584,-603.85,0.00014794,2]
[383853575,1757143847594,-1062.88,0.00014794,2]
[383853576,1757143847604,-505.29,0.00014794,2]
[383853577,1757143847613,-627.28,0.00014794,2]
[383853578,1757143847623,-480.0,0.00014794,2]
[383853579,1757143847633,-559.37,0.00014794,2]
[383853580,1757143847643,-818.83,0.00014794,2]
[383853581,1757143847652,-498.54,0.00014794,2]
[383853582,1757143847662,-480.0,0.00014794,2]
[383853583,1757143847671,-480.0,0.00014794,2]
[383853584,1757143847681,-480.0,0.00014794,2]
[383853585,1757143847691,-480.0,0.00014794,2]
[383853586,1757143847701,-654.51,0.00014794,2]
[383853587,1757143847710,-480.0,0.00014794,2]
[383853588,1757143847720,-480.0,0.00014794,2]
[383853589,1757143847730,-492.44,0.00014794,2]
[383853590,1757143847740,-480.0,0.00014794,2]
[383853591,1757143847750,-625.64,0.00014794,2]
[383853592,1757143847759,-480.0,0.00014794,2]
[383853593,1757143847769,-485.01023234,0.00014794,2]
[383853594,1757143847779,-798.58,0.00014794,2]
[383853595,1757143847789,-488.04,0.00014794,2]
[383853596,1757143847799,-480.0,0.00014794,2]
[383853597,1757143847809,-480.0,0.00014794,2]
[383853598,1757143847819,-480.0,0.00014794,2]
[383853599,1757143847829,-851.74,0.00014794,2]
[383853600,1757143847839,-480.0,0.00014794,2]
[383853601,1757143847849,-822.2,0.00014794,2]
[383853602,1757143847859,-480.0,0.00014794,2]
[383853603,1757143847870,-861.15,0.00014794,2]
[383853604,1757143847880,-510.6,0.00014794,2]
[383853605,1757143847890,-657.02,0.00014794,2]
[383853606,1757143847900,-480.0,0.00014794,2]
[383853607,1757143847910,-4337.94,0.00014794,2]
[383853608,1757143847920,-480.0,0.00014794,2]
[383853609,1757143847929,-480.0,0.00014794,2]
[383853610,1757143847939,-2274.53,0.00014794,2]
[383853611,1757143847949,-480.0,0.00014794,2]
[383853612,1757143847959,-480.0,0.00014794,2]
[383853613,1757143847970,-818.65,0.00014794,2]
[383853614,1757143847980,-480.0,0.00014794,2]
[383853615,1757143847991,-1885.52,0.00014794,2]
[383853616,1757143848000,-480.0,0.00014794,2]
[383853617,1757143848010,-17109.5,0.00014794,2]
[383853618,1757143848021,-151.0,0.00014794,2]
[383853619,1757143848032,-151.0,0.00014794,2]
[383853620,1757143848043,-151.0,0.00014794,2]
[383853621,1757143848053,-480.0,0.00014794,2]
[383853622,1757143848064,-1910.22,0.00014794,2]
[383853623,1757143848076,-705.8,0.00014794,2]
[383853624,1757143848087,-536.62,0.00014794,2]
[383853625,1757143848097,-1940.78,0.00014794,2]
[383853626,1757143848108,-298.67184506,0.00014794,2]
[383853627,1757143848118,-2433.6,0.00014794,2]
[383853628,1757143848127,-151.0,0.00014794,2]
[383853629,1757143848137,-500.0,0.00014794,2]
[383853630,1757143848148,-480.0,0.00014794,2]
[383853631,1757143848158,-1174.74,0.00014794,2]
[383853632,1757143848167,-1394.88,0.00014794,2]
[383853633,1757143848177,-593.33,0.00014794,2]
[383853634,1757143848187,-2120.67,0.00014794,2]
[383853635,1757143848197,-480.0,0.00014794,2]
[383853636,1757143848206,-1762.73,0.00014794,2]
[383853637,1757143848217,-561.98,0.00014794,2]
[383853638,1757143848227,-948.89,0.00014794,2]
[383853639,1757143848236,-480.0,0.00014794,2]
[383853640,1757143848246,-737.59,0.00014794,2]
[383853641,1757143848256,-545.38,0.00014794,2]
[383853642,1757143848266,-151.0,0.00014794,2]
[383853643,1757143848275,-480.0,0.00014794,2]
[383853644,1757143848284,-9434.71,0.00014794,2]
[383853645,1757143848294,-480.0,0.00014794,2]
[383853646,1757143848303,-480.0,0.00014794,2]
[383853647,1757143848312,-430.93603341,0.00014794,2]
[383853648,1757143848321,-480.0,0.00014794,2]
[383853649,1757143848331,-480.0,0.00014794,2]
[383853650,1757143848341,-739.0,0.00014794,2]
[383853651,1757143848350,-579.38,0.00014794,2]
[383853652,1757143848360,-480.0,0.00014794,2]
[383853653,1757143848369,-480.0,0.00014794,2]
[383853654,1757143848379,-783.14,0.00014794,2]
[383853655,1757143848388,-734.75,0.00014794,2]
[383853656,1757143848398,-1751.42,0.00014794,2]
[383853657,1757143848408,-1666.63,0.00014794,2]
[383853658,1757143848421,-640.45,0.00014794,2]
[383853659,1757143848431,-1159.53,0.00014794,2]
[383853660,1757143848440,-2279.84,0.00014794,2]
[383853661,1757143848450,-502.90187624,0.00014794,2]
[383853662,1757143848460,-644.23,0.00014794,2]
[383853663,1757143848470,-388.34825872,0.00014794,2]
[383853664,1757143848479,-1508.72,0.00014794,2]
[383853665,1757143848488,-480.0,0.00014794,2]
[383853666,1757143848498,-959.07,0.00014794,2]
[383853667,1757143848509,-480.0,0.00014794,2]
[383853668,1757143848518,-618.68,0.00014794,2]
[383853669,1757143848527,-6469.27,0.00014794,2]
[383853670,1757143848537,-151.0,0.00014794,2]
[383853671,1757143848546,-151.0,0.00014794,2]
[383853672,1757143848555,-151.0,0.00014794,2]
[383853673,1757143848564,-251.25988585,0.00014794,2]
[383853674,1757143848573,-151.0,0.00014794,2]
[383853675,1757143848583,-480.0,0.00014794,2]
[383853676,1757143848592,-155.149743,0.00014794,2]
[383853677,1757143848602,-151.0,0.00014794,2]
[383853678,1757143848611,-151.0,0.00014794,2]
[383853679,1757143848620,-583.497092,0.00014794,2]
[383853680,1757143848630,-480.0,0.00014794,2]
[383853681,1757143848640,-583.497092,0.00014794,2]
[383853682,1757143848649,-151.0,0.00014794,2]
[383853683,1757143848659,-583.497092,0.00014794,2]
[383853684,1757143848668,-151.0,0.00014794,2]
[383853685,1757143848677,-583.497092,0.00014794,2]
[383853686,1757143848687,-151.0,0.00014794,2]
[383853687,1757143848696,-432.0,0.00014833,2]
[383853688,1757143848706,-432.0,0.00014848,2]
[383853689,1757143848715,-151.0,0.0001488,2]
[383853690,1757143848725,-151.0,0.0001488,2]
[383853691,1757143848735,-151.0,0.0001488,2]
[383853692,1757143848744,-151.0,0.0001488,2]
[383853693,1757143848754,-10097.458233,0.0001488,2]
[383853694,1757143848763,-174.97010853,0.000149,2]
[383853695,1757143848773,-432.0,0.0001496,2]
[383853696,1757143848782,-5910.8064466,0.00014988,2]
[383853697,1757143848791,-432.0,0.00014997,2]
[383853698,1757143848800,-160.0,0.00015,2]
[383853699,1757143848810,-160.0,0.00015,3]
[383853700,1757143848819,-160.0,0.00015,3]
[383853701,1757143848829,-163.87656662,0.00015,4]
[383853702,1757143848839,-160.0,0.00015,2]
[383853703,1757143848848,-502.2095997,0.00015021,2]
[383853704,1757143848857,-1000.0,0.00015021,2]
[383853705,1757143848867,-1000.0,0.00015021,2]
[383853706,1757143848877,-1078.81561959,0.00015021,2]
[383853707,1757143848887,-1000.0,0.00015021,2]
[383853708,1757143848896,-502.18447306,0.00015021,2]
[383853709,1757143848906,-1000.0,0.00015021,2]
[383853710,1757143848915,-242.77038211,0.00015024,2]
[383853711,1757143848926,-928.41897789,0.00015035,2]
[383853712,1757143848935,-187.78006525,0.00015059,2]
[383853713,1757143848945,-432.0,0.00015067,2]
[383853714,1757143848955,-480.0,0.00015068,2]
[383853715,1757143848965,-603.85,0.00015068,2]
[383853716,1757143848974,-1062.88,0.00015068,2]
[383853717,1757143848984,-505.29,0.00015068,2]
[383853718,1757143848993,-151.0,0.00015068,2]
[383853719,1757143849003,-627.28,0.00015068,2]
[383853720,1757143849013,-480.0,0.00015068,2]
[383853721,1757143849023,-559.37,0.00015068,2]
[383853722,1757143849033,-818.83,0.00015068,2]
[383853723,1757143849043,-498.54,0.00015068,2]
[383853724,1757143849052,-480.0,0.00015068,2]
[383853725,1757143849062,-480.0,0.00015068,2]
[383853726,1757143849072,-480.0,0.00015068,2]
[383853727,1757143849081,-480.0,0.00015068,2]
[383853728,1757143849091,-654.51,0.00015068,2]
[383853729,1757143849102,-480.0,0.00015068,2]
[383853730,1757143849111,-480.0,0.00015068,2]
[383853731,1757143849123,-492.44,0.00015068,2]
[383853732,1757143849132,-480.0,0.00015068,2]
[383853733,1757143849141,-625.64,0.00015068,2]
[383853734,1757143849150,-151.0,0.00015068,2]
[383853735,1757143849160,-260.36555341,0.00015068,2]
[383853736,1757143849169,-243.741908,0.00015068,2]
[383853737,1757143849178,-151.0,0.00015068,2]
[383853738,1757143849188,-798.58,0.00015068,2]
[383853739,1757143849197,-151.0,0.00015068,2]
[383853740,1757143849207,-488.04,0.00015068,2]
[383853741,1757143849217,-480.0,0.00015068,2]
[383853742,1757143849226,-480.0,0.00015068,2]
[383853743,1757143849236,-480.0,0.00015068,2]
[383853744,1757143849245,-231.768692,0.00015068,2]
[383853745,1757143849255,-851.74,0.00015068,2]
[383853746,1757143849264,-822.2,0.00015068,2]
[383853747,1757143849274,-480.0,0.00015068,2]
[383853748,1757143849284,-861.15,0.00015068,2]
[383853749,1757143849293,-510.6,0.00015068,2]
[383853750,1757143849302,-657.02,0.00015068,2]
[383853751,1757143849312,-718.90568393,0.00015068,2]
[383853752,1757143849322,-480.0,0.00015068,2]
[383853753,1757143849332,-4337.94,0.00015068,2]
[383853754,1757143849341,-480.0,0.00015068,2]
[383853755,1757143849351,-480.0,0.00015068,2]
[383853756,1757143849360,-2274.53,0.00015068,2]
[383853757,1757143849370,-153.89658875,0.00015068,2]
[383853758,1757143849379,-818.65,0.00015068,2]
[383853759,1757143849389,-480.0,0.00015068,2]
[383853760,1757143849398,-1885.52,0.00015068,2]
[383853761,1757143849408,-17109.5,0.00015068,2]
[383853762,1757143849418,-480.0,0.00015068,2]
[383853763,1757143849428,-1910.22,0.00015068,2]
[383853764,1757143849441,-705.8,0.00015068,2]
[383853765,1757143849451,-536.62,0.00015068,2]
[383853766,1757143849556,-1940.78,0.00015068,2]
[383853767,1757143849567,-2433.6,0.00015068,2]
[383853768,1757143849576,-500.0,0.00015068,2]
[383853769,1757143849586,-480.0,0.00015068,2]
[383853770,1757143849596,-1174.74,0.00015068,2]
[383853771,1757143849606,-1394.88,0.00015068,2]
[383853772,1757143849616,-593.33,0.00015068,2]
[383853773,1757143849626,-2120.67,0.00015068,2]
[383853774,1757143849635,-480.0,0.00015068,2]
[383853775,1757143849645,-1762.73,0.00015068,2]
[383853776,1757143849654,-561.98,0.00015068,2]
[383853777,1757143849664,-948.89,0.00015068,2]
[383853778,1757143849674,-480.0,0.00015068,2]
[383853779,1757143849684,-737.59,0.00015068,2]
[383853780,1757143849693,-545.38,0.00015068,2]
[383853781,1757143849703,-480.0,0.00015068,2]
[383853782,1757143849712,-9434.71,0.00015068,2]
[383853783,1757143849721,-480.0,0.00015068,2]
[383853784,1757143849730,-480.0,0.00015068,2]
[383853785,1757143849739,-489.55113956,0.00015068,2]
[383853786,1757143849749,-480.0,0.00015068,2]
[383853787,1757143849759,-739.0,0.00015068,2]
[383853788,1757143849769,-579.38,0.00015068,2]
[383853789,1757143849779,-480.0,0.00015068,2]
[383853790,1757143849788,-480.0,0.00015068,2]
[383853791,1757143849798,-783.14,0.00015068,2]
[383853792,1757143849808,-734.75,0.00015068,2]
[383853793,1757143849818,-1751.42,0.00015068,2]
[383853794,1757143849827,-1666.63,0.00015068,2]
[383853795,1757143849837,-640.45,0.00015068,2]
[383853796,1757143849847,-1159.53,0.00015068,2]
[383853797,1757143849856,-2279.84,0.00015068,2]
[383853798,1757143849866,-644.23,0.00015068,2]
[383853799,1757143849876,-480.0,0.00015068,2]
[383853800,1757143849886,-1508.72,0.00015068,2]
[383853801,1757143849895,-959.07,0.00015068,2]
[383853802,1757143849905,-480.0,0.00015068,2]
[383853803,1757143849912,-618.68,0.00015068,2]
[383853804,1757143849919,-6469.27,0.00015068,2]
[383853805,1757143849929,-480.0,0.00015068,2]
[383853806,1757143849938,-480.0,0.00015068,2]
[383853807,1757143849948,-220.46304165,0.00015068,2]
[383853808,1757143849957,-1000.0,0.00015068,2]
[383853809,1757143849967,-151.0,0.000151,2]
[383853810,1757143849976,-38399.26994077,0.00015105,2]
[383853811,1757143849985,-432.0,0.00015119,2]
[383853812,1757143849995,-157.0,0.00015212,2]
[383853813,1757143850005,-157.0,0.00015212,2]
[383853814,1757143850014,-186.0,0.00015212,2]
[383853815,1757143850024,-186.0,0.00015212,2]
[383853816,1757143850033,-157.0,0.00015212,2]
[383853817,1757143850043,-157.0,0.00015212,2]
[383853818,1757143850054,-157.0,0.00015212,2]
[383853819,1757143850064,-157.0,0.00015212,2]
[383853820,1757143850073,-543.0,0.00015212,2]
[383853821,1757143850082,-157.0,0.00015212,2]
[383853822,1757143850092,-157.0,0.00015212,2]
[383853823,1757143850102,-157.0,0.00015212,2]
[383853824,1757143850111,-157.0,0.00015212,2]
[383853825,1757143850121,-157.0,0.00015212,2]
[383853826,1757143850130,-219.44141183,0.00015212,2]
[383853827,1757143850140,-252.64,0.00015212,2]
[383853828,1757143850150,-186.0,0.00015212,2]
[383853829,1757143850159,-500.0,0.00015243,2]
[383853830,1757143850169,-500.0,0.00015243,2]
[383853831,1757143850179,-500.0,0.0001525,2]
[383853832,1757143850188,-500.0,0.0001525,2]
[383853833,1757143850198,-583.497092,0.00015257,2]